Cogmind - Beta 14 @@@ ROGUE MODE // 2024.11.05 @ 19:43:13 Player: Spoodle Result: Destroyed by P-80 Master with Gamma Rifle Performance ------------- Evolutions (7) 3500 Regions Visited (28) 5600 Robots Destroyed (425) 2125 Value Destroyed (17132) 17132 Prototype IDs (74) 1480 Alien Tech Used (1) 200 Bonus (6302) 6302 TOTAL SCORE: 36339 Bonus ------- Triggered High Security 500 High Alert Combat Kills 2059 Follower Combat Kills 2368 Network Hubs Disabled 200 Met Data Miner 300 Met Zhirov 300 Met Warlord at Base 500 MAIN.C Attacked Warlord 500 Warlord Defense Kills 568 Built Enhanced Grunts 300 A7 Reached Mainframe 300 Friendly Fire -1593 Cogmind --------- Core Integrity 0/1300 Matter 170/300 Energy 100/100 System Corruption 26% Temperature Cool (0) Movement Walking (120) Location -3/Research Parts ------- > --- POWER (2) -------- (None) > --- PROPULSION (4) --- Advanced Myomer Leg > --- UTILITY (11) ----- Advanced Terrain Scan Processor Core Analyzer > --- WEAPON (4) ------- (None) > --- INVENTORY (5) ---- Advanced Weapon Cycler Advanced Transmission Jammer Heavy Gauss Cannon Phasing Sabre Peak State ------------ > --- POWER ------------ Reinforced Antimatter Reactor Particle Reactor > --- PROPULSION ------- Heavy Treads Centrium Heavy Treads > --- UTILITY ---------- Experimental Coolant Injector High-capacity Storage Unit Makeshift Trap Scanner Advanced Terrain Scanner Advanced Terrain Scan Processor Advanced Targeting Computer Core Analyzer Particle Accelerator Advanced Weapon Cycler Advanced Transmission Jammer Advanced Hacking Suite > --- WEAPON ----------- Beamcaster Quantum Rifle Quantum Rifle Quantum Rifle > --- INVENTORY -------- Vortex Chain Reactor Improved Heavy Treads Centrium Heavy Treads Advanced Cryofiber Web Experimental Heat Sink Compact Battery Experimental Weapon Shielding Focal Shield EM Disruption Field Mini Drone Bay Plasma Rifle Advanced KE Penetrator Heavy Gauss Cannon Long-range Missile Launcher Smartbomb Launcher Phasing Sabre [Rating: 148] Favorites ----------- Power Quantum Reactor Engine Reinforced Deuterium Engine Power Core Light Nuclear Core Reactor Quantum Reactor Propulsion Armored Treads Treads Armored Treads Leg Aluminum Leg Flight Unit Improved Flight Unit Utility Improved Utility Shielding Device Force Field Storage High-capacity Storage Unit Processor Core Analyzer Hackware Advanced Hacking Suite Protection Improved Utility Shielding Weapon Enhanced Autogun Energy Gun Wave Gun Energy Cannon Beam Cannon Ballistic Gun Enhanced Autogun Ballistic Cannon Mass Driver Launcher Smartbomb Launcher Slashing Weapon Katana Build | -11 -10 -10 -9 -9 -8 -7 -7 -7 -7 -6 -6 -6 -6 -6 -6 -5 -5 -5 -5 -5 -5 -4 -4 -4 -4 -4 -3 -3 ------- Run | Yrd Mat Min Mat Min Mat Fac Low Low Dat Pro Fac Ext Cet Arc Hub Fac Was Fac Upp Upp War Pro Fac Upp Upp Zhi Pro Res Slots Evolved 14 | . . . 2 . 2 2 . . . . 2 . . . . 2 . . . . . . 2 . . . . 2 Power 1 | . . . . . . . . . . . . . . . . 1 . . . . . . . . . . . . Propulsion 2 | . . . 1 . . . . . . . 1 . . . . . . . . . . . . . . . . . Utility 9 | . . . 1 . 2 . . . . . 1 . . . . 1 . . . . . . 2 . . . . 2 Weapon 2 | . . . . . . 2 . . . . . . . . . . . . . . . . . . . . . . Parts Attached 581 | 7 19 . 59 2 35 39 13 25 . 33 27 14 17 7 9 7 17 22 15 2 23 15 88 11 . 14 13 48 Power 25 | 1 5 . 4 . 1 1 . . . 1 . 1 1 . . 2 1 . 1 . . . 2 1 . . . 3 Engine 13 | 1 4 . 4 . 1 1 . . . 1 . 1 . . . . . . . . . . . . . . . . Core 2 | . 1 . . . . . . . . . . . . . . 1 . . . . . . . . . . . . Reactor 10 | . . . . . . . . . . . . . 1 . . 1 1 . 1 . . . 2 1 . . . 3 Propulsion 53 | 2 4 . 14 . 9 . . . . 2 3 . 3 . . . 1 . . . . 3 5 . . 3 . 4 Treads 46 | . 2 . 14 . 8 . . . . 2 3 . 3 . . . 1 . . . . 3 5 . . 2 . 3 Leg 5 | 2 2 . . . . . . . . . . . . . . . . . . . . . . . . . . 1 Wheel . | . . . . . . . . . . . . . . . . . . . . . . . . . . . . . Hover . | . . . . . . . . . . . . . . . . . . . . . . . . . . . . . Flight 2 | . . . . . 1 . . . . . . . . . . . . . . . . . . . . 1 . . Utility 280 | 2 7 . 6 2 10 14 4 13 . 11 18 6 8 3 7 5 13 18 11 . 15 5 63 7 . 8 4 20 Device 175 | 1 3 . . 2 5 2 4 4 . 8 14 2 4 2 5 3 9 6 7 . 10 3 49 6 . 6 3 17 Storage 8 | 1 2 . 1 . 1 . . 1 . . . . . . 1 . . . . . . . . 1 . . . . Processor 6 | . . . . . . . . . . . 3 . . . . 1 . . . . . . 1 . . . 1 . Hackware 6 | . . . . . 1 . . . . . 1 . . . 1 . . 1 . . . . 1 . . . . 1 Protection 85 | . 2 . 5 . 3 12 . 8 . 3 . 4 4 1 . 1 4 11 4 . 5 2 12 . . 2 . 2 Artifact . | . . . . . . . . . . . . . . . . . . . . . . . . . . . . . Weapon 223 | 2 3 . 35 . 15 24 9 12 . 19 6 7 5 4 2 . 2 4 3 2 8 7 18 3 . 3 9 21 Energy Gun 68 | 1 1 . 13 . 8 4 . . . . 2 3 3 3 2 . 1 4 1 . 2 1 3 1 . 2 6 7 Energy Cannon 27 | . 1 . 15 . . 3 1 5 . 1 1 . . . . . . . . . . . . . . . . . Ballistic Gun 55 | 1 1 . . . 5 12 3 1 . 6 2 . 1 1 . . 1 . 1 1 4 3 8 . . 1 . 3 Ballistic Cannon 7 | . . . . . . . . . . 2 1 2 1 . . . . . . . . . . . . . . 1 Launcher 39 | . . . 4 . 1 2 2 . . 4 . 2 . . . . . . 1 1 2 3 7 1 . . 3 6 Special Weapon . | . . . . . . . . . . . . . . . . . . . . . . . . . . . . . Impact Weapon . | . . . . . . . . . . . . . . . . . . . . . . . . . . . . . Slashing Weapon 27 | . . . 3 . 1 3 3 6 . 6 . . . . . . . . . . . . . 1 . . . 4 Piercing Weapon . | . . . . . . . . . . . . . . . . . . . . . . . . . . . . . Special Melee Weapon . | . . . . . . . . . . . . . . . . . . . . . . . . . . . . . Unidentified Prototypes 35 | . . . 4 . 3 4 . . . . . . 4 . 1 1 . 2 . . 3 . 2 1 . 4 . 6 Corrupted Parts 2 | . . . . . . . . . . . . . . 1 . . . . . . . 1 . . . . . . System Corruption 7 | . . . . . . . . . . . . . . 2 . . . . . . . 5 . . . . . . Parts Lost 49 | . 1 . 1 . . . . . . . . . . . . . 1 . 1 . . 4 11 . . . 3 27 Power 3 | . . . . . . . . . . . . . . . . . . . 1 . . . . . . . . 2 Propulsion 5 | . . . . . . . . . . . . . . . . . . . . . . . . . . . . 5 Utility 27 | . . . 1 . . . . . . . . . . . . . . . . . . 2 9 . . . 3 12 Weapon 14 | . 1 . . . . . . . . . . . . . . . 1 . . . . 2 2 . . . . 8 Highest Loss Streak 25 | . 1 . 1 . . . . . . . . . . . . . 1 . 1 . . 4 5 . . . 3 25 To Critical Strikes 1 | . . . . . . . . . . . . . . . . . . . 1 . . . . . . . . . Average Slot Usage (%) 93 | . 99 100 99 100 100 100 100 100 100 100 99 100 92 93 93 93 88 87 87 88 87 84 87 80 84 67 79 84 Engine 4 | . 12 14 11 11 9 7 7 7 7 7 6 6 1 . . . . . . . . . . . . . . . Reactor 4 | . . . . . . . . . . . . . 4 6 6 11 10 11 10 11 11 11 10 5 5 5 5 7 Treads 19 | . 22 28 33 33 27 23 23 23 23 23 26 26 21 20 20 17 11 11 11 11 11 11 10 10 10 9 10 8 Device 16 | . 12 14 11 11 18 15 15 15 15 15 13 10 11 11 12 11 19 13 12 17 15 17 22 31 31 29 22 24 Storage 6 | . 14 14 11 11 9 7 7 7 7 7 6 6 6 6 6 5 5 5 5 5 5 5 5 5 5 5 5 3 Processor 4 | . . . . . . . . . . . 5 6 6 6 6 10 11 7 5 5 5 5 9 10 10 10 10 13 Hackware 1 | . . . . . 7 . . . . . . . . . . . . 2 4 . . . . . . . . 2 Protection 10 | . 1 . 10 11 10 14 15 15 15 15 13 15 14 14 13 10 3 8 10 11 12 10 6 . . 1 5 1 Energy Gun 8 | . 6 . 7 22 14 . . . . . 3 13 18 15 13 11 11 10 11 11 10 10 13 6 10 . 12 12 Energy Cannon 1 | . 7 14 13 . . . . . . . . . . . . . . . . . . . . . . . . . Ballistic Gun 10 | . 13 14 . . 2 27 23 23 23 26 9 . 3 9 13 11 10 11 10 11 10 7 5 5 5 . 5 1 Ballistic Cannon 1 | . . . . . . . . . . . 13 12 2 . . . . . . . . . . . . . . . Slashing Weapon 1 | . . . . . . 2 6 6 7 3 . . . . . . . . . . . . . 1 5 5 . 2 Peak Build Rating 148 | 7 11 11 21 21 35 48 48 50 48 56 70 70 99 100 105 118 124 124 124 122 127 123 140 136 132 132 128 148 Average Rating 78 | 4 8 11 19 19 31 44 45 47 48 49 65 69 90 96 100 115 120 120 119 120 121 119 134 129 132 113 123 136 On Entrance 78 | . 7 11 11 21 21 35 47 46 48 48 56 70 69 98 99 102 115 122 122 120 121 123 118 126 132 132 128 126 Naked Turns . | . . . . . . . . . . . . . . . . . . . . . . . . . . . . . Heaviest Build 142 | 14 31 31 60 58 60 76 61 66 60 83 79 96 95 95 100 120 120 120 133 119 132 119 142 123 112 113 115 127 Greatest Support 160 | 20 40 40 60 60 60 60 60 60 60 63 98 98 136 136 136 136 150 150 150 150 150 150 155 155 155 155 150 160 Greatest Overweight (x) 32 | . . . . . . 1 1 1 . 1 . . . . . . . . . . . . . . . 32 . 1 Average Overweight (x) . | . . . . . . . . . . . . . . . . . . . . . . . . . . . . . Largest Inventory Capacity 20 | 8 15 15 20 20 20 15 15 15 15 15 15 15 15 15 20 20 20 20 20 20 20 20 20 20 20 20 20 20 Average Capacity 17 | 7 13 15 19 20 19 15 15 15 15 15 15 15 15 15 19 20 20 20 20 20 20 20 20 20 20 20 20 19 Most Carried 20 | 6 15 15 20 20 20 15 15 15 15 15 15 15 15 15 20 19 20 20 20 20 20 20 20 20 20 20 20 20 Average Carried 17 | 4 13 14 19 20 18 14 14 15 15 14 14 14 14 15 17 18 19 19 19 18 19 18 18 17 20 19 19 19 Final Capacity 20 | 8 15 15 20 20 15 15 15 15 15 15 15 15 15 15 20 20 20 20 20 20 20 20 20 20 20 20 20 5 Final Carried 20 | 6 15 15 20 20 15 15 15 15 15 15 15 15 15 15 20 18 20 20 18 19 20 18 16 20 20 20 20 4 Class Distribution -------------------- 30% | Scavenger-Tank 24% | Tank 14% | Scavenger-Mutant 10% | Mutant 8% | Scavenger-Gunner 4% | Derelict-Gunner 4% | Commander-Tank Dominant Class ---------------- Mutant | -10/Materials Mutant | -10/Mines Scavenger-Mutant | -9/Materials Scavenger-Mutant | -9/Mines Scavenger-Mutant | -8/Materials Tank | -7/Factory Tank | -7/Lower Caves Tank | -7/Lower Caves Tank | -7/Data Miner Tank | -6/Proximity Caves Tank | -6/Factory Tank | -6/Extension Commander-Tank | -6/Cetus Scavenger-Tank | -6/Archives Scavenger-Tank | -6/Hub_04(d) Scavenger-Tank | -5/Factory Scavenger-Gunner | -5/Waste Scavenger-Tank | -5/Factory Scavenger-Tank | -5/Upper Caves Scavenger-Tank | -5/Upper Caves Scavenger-Tank | -5/Warlord Scavenger-Tank | -4/Proximity Caves Scavenger-Gunner | -4/Factory Gunner | -4/Upper Caves Derelict-Gunner | -4/Upper Caves Mutant | -4/Zhirov Derelict-Gunner | -3/Proximity Caves Derelict-Assassin | -3/Research Resources | -11 -10 -10 -9 -9 -8 -7 -7 -7 -7 -6 -6 -6 -6 -6 -6 -5 -5 -5 -5 -5 -5 -4 -4 -4 -4 -4 -3 -3 ----------- Run | Yrd Mat Min Mat Min Mat Fac Low Low Dat Pro Fac Ext Cet Arc Hub Fac Was Fac Upp Upp War Pro Fac Upp Upp Zhi Pro Res Matter Collected 11507 | 313 347 33 606 10 375 760 472 426 . 1000 964 757 226 122 282 . 308 268 370 67 386 440 1538 412 . 97 473 455 Remotely . | . . . . . . . . . . . . . . . . . . . . . . . . . . . . . Salvage Created 19005 | 162 652 136 1730 45 1017 600 442 438 . 814 947 675 136 290 1037 . 1105 436 626 185 227 805 3912 491 . 97 792 1208 Parts 857 | 16 39 11 117 8 62 33 16 21 . 39 45 31 6 9 40 . 10 35 21 14 4 26 176 5 . 1 20 52 Haulers Intercepted 21 | . 2 . 6 . 6 2 . . . . 2 1 . . 2 . . . . . . . . . . . . . Recyclers Shooed 16 | . 1 . 5 . . . . . . 1 4 . . . . . . . . . . . 3 . . . . 2 Parts Field Recycled 5 | . . . . . . 5 . . . . . . . . . . . . . . . . . . . . . . Retrieved Matter 63 | . . . . . . 63 . . . . . . . . . . . . . . . . . . . . . . Parts Self-Destructed 180 | . . . . . . . 13 21 . 67 . . . . . . . . 21 18 . 20 . 3 . 1 16 . Prevented 1 | . . . . . . . . . . . . . . . . . . . . . . . . . . . 1 . Kills | -11 -10 -10 -9 -9 -8 -7 -7 -7 -7 -6 -6 -6 -6 -6 -6 -5 -5 -5 -5 -5 -5 -4 -4 -4 -4 -4 -3 -3 ------- Run | Yrd Mat Min Mat Min Mat Fac Low Low Dat Pro Fac Ext Cet Arc Hub Fac Was Fac Upp Upp War Pro Fac Upp Upp Zhi Pro Res Combat Hostiles Destroyed 303 | . 13 5 29 . 20 7 10 8 . 14 15 10 2 1 10 . 4 7 12 4 4 19 73 4 . . 18 14 Guns 171 | . 8 2 5 . 16 5 4 4 . 8 5 5 2 1 10 . 4 7 7 2 4 8 52 3 . . 2 7 Cannons 53 | . 5 3 22 . . 2 1 4 . . 9 5 . . . . . . . . . . . . . . . 2 AOE 73 | . . . 2 . 3 . 5 . . 6 . . . . . . . . 5 2 . 11 18 1 . . 16 4 Classes Destroyed 24 | 2 5 . 4 . 1 1 3 1 . . . . . . 1 . 1 . . . 1 2 1 . . . . 1 Worker 22 | . . . 1 1 2 2 . . . . 3 . . . 3 . . . . . . . 3 . . . . 7 Builder 22 | . . . 1 . 3 1 . . . . 2 . . . . . . 1 . . . . 11 . . . . 3 Tunneler 14 | 5 . . . 1 . 3 . . . . 1 . . . . . . . . . . . 3 . . . . 1 Hauler 21 | . 2 . 6 . 6 2 . . . . 2 1 . . 2 . . . . . . . . . . . . . Recycler 12 | 1 1 . 4 1 . . . . . 2 1 . . . . . . . . . . . 1 . . . . 1 Mechanic 2 | . . . . . . . . . . . . . . . . . . . . . . . 1 . . . . 1 Operator 6 | . 1 . 1 . . . . . . . . . . 2 1 . . . . . . . . . . . . 1 Watcher 20 | . 2 . 3 . 1 1 . . . 1 2 1 . . 1 . . 1 . . . . 6 . . . . 1 Swarmer 59 | . 3 3 5 . 10 . . . . 6 3 . . . . . . . . 2 . 4 22 1 . . . . Saboteur 3 | . . . . . . . . . . . . . . . 1 . . . . . . . 2 . . . . . Grunt 102 | . 10 2 15 . 5 . 6 3 . 3 6 . . . 7 . . . 2 1 2 7 17 1 . . 11 4 Brawler 10 | . . . . . . . 1 . . . . . . . . . . . 3 . 1 2 2 . . . 1 . Duelist 10 | . . . 1 . . . 1 . . 1 . . . . 1 . . . 2 . . . 1 . . . 3 . Protector 3 | . . . . . . . . . . . . . . . . . . . . . . 1 . . . . 1 1 Sentry 44 | . . . 8 . 4 3 . . . 4 . 8 . 1 1 . . 1 2 1 . 1 5 1 . . 2 2 Specialist 1 | . . . . . . . . . . . . . . . . . . . . . . . . . . . . 1 Hunter 26 | . . . . . 1 2 1 4 . . 2 . . . . . . 2 1 . . . 12 . . . . 1 Programmer 32 | . . . . . . 2 . . . . 4 1 . . . . . 4 2 . . 3 12 1 . . . 3 Behemoth 2 | . . . . . . . . 1 . . . 1 . . . . . . . . . . . . . . . . Compactor 4 | . . . . . . . . . . . . . . . . . 4 . . . . . . . . . . . Cetus Guard 2 | . . . . . . . . . . . . . 2 . . . . . . . . . . . . . . . Enhanced Grunt 2 | . . . . . . . . . . . . . . . 2 . . . . . . . . . . . . . Striker 3 | . . . . . . . . . . . . . . . . . . . . . 1 . . . . . . 2 Decomposer 2 | . . . . . . . . 1 . . . . . . . . . . . . . . . 1 . . . . Packrat 3 | . . . . . . . 1 . . . . . . . . . . . . . . . . 2 . . . . Samaritan 2 | . . . . . . . 1 . . . . . . . . . . . . . . . . 1 . . . . Thief 1 | . . . . . . . 1 . . . . . . . . . . . . . . . . . . . . . Savage 1 | . . . . . . . . . . . . . . 1 . . . . . . . . . . . . . . Bouncer 1 | . . . . . . . . . . . . . . . . . . . . . 1 . . . . . . . Guerrilla 1 | . . . . . . . . . . . . . . 1 . . . . . . . . . . . . . . Fireman 1 | . . . . . . . . . . . . . . . . . . . . . . 1 . . . . . . Best Kill Streak 16 | 5 5 3 8 1 5 6 4 3 . 4 4 5 2 1 7 . 1 3 7 2 3 10 16 3 . . 12 11 Combat Bots Only 12 | . 5 3 6 . 3 2 4 3 . 3 3 4 2 1 5 . 1 2 7 2 3 10 8 3 . . 12 4 Max Kills in Single Turn 6 | 1 1 1 2 1 2 1 2 2 . 3 2 2 1 1 2 . 1 2 2 2 2 4 6 1 . . 3 4 Gunslinging 1 | . . . . . . . 1 1 . . . . . . 1 . . 1 . . 1 . 1 . . . . . Exploded 5 | . . . 2 . 2 . 1 . . 3 . . . . . . . . 2 2 . 4 5 1 . . 3 2 Melee . | . . . . . . . . . . . . . . . . . . . . . . . . . . . . . Uniques/NPCs Destroyed . | . . . . . . . . . . . . . . . . . . . . . . . . . . . . . Combat | -11 -10 -10 -9 -9 -8 -7 -7 -7 -7 -6 -6 -6 -6 -6 -6 -5 -5 -5 -5 -5 -5 -4 -4 -4 -4 -4 -3 -3 -------- Run | Yrd Mat Min Mat Min Mat Fac Low Low Dat Pro Fac Ext Cet Arc Hub Fac Was Fac Upp Upp War Pro Fac Upp Upp Zhi Pro Res Hostile Shots Fired 1872 | . 52 19 126 . 83 102 19 31 . 108 48 161 3 1 28 . 1 17 48 8 52 98 434 27 . . 59 347 Missed 569 | . 15 7 40 . 26 44 4 10 . 33 15 64 1 1 12 . . 5 12 3 16 12 115 12 . . 20 102 Damage Taken 18162 | . 437 157 1143 . 468 442 148 229 . 504 318 517 66 . 166 . 49 116 567 60 440 1473 4561 216 . . 624 5461 Core 2069 | . 32 . 90 . 13 30 8 36 . 43 8 28 . . 25 . . 27 22 . 42 75 229 . . . 43 1318 Absorbed by Shields 4508 | . . . . . 187 169 56 86 . 176 266 231 27 . 174 . . 126 324 61 343 542 1378 130 . . 232 . Reduced by Siege Mode 872 | . . . . . . . . . . . . . . . . . 13 . 4 . 6 154 441 . . . . 254 Redirected to Shielding 514 | . 3 . . . . 34 4 13 . 31 15 12 . . 16 . . . 8 . 11 105 94 . . . 96 72 Ignored by Resistances 1496 | . . . . . . 46 30 54 . 168 42 159 43 . . . . 43 111 . 18 47 391 . . . . 344 Regen/Repaired (Parts) 2298 | . 93 . 81 . 85 . . . . . . . . . . . 57 6 . . 155 . 1821 . . . . . Core Remaining (%) 86 | 100 . 87 . 77 97 . . . . 83 . . . . 92 . . . . . . 83 . . . . 76 . Volleys Fired 777 | 23 52 11 85 3 62 31 22 17 . 45 53 24 8 10 23 3 20 7 22 4 18 33 139 12 . . 21 29 Largest 4 | 2 2 2 2 2 2 4 4 4 . 4 4 4 4 4 4 1 4 4 4 4 4 4 4 2 . . 4 4 Hottest 357 | 60 80 80 136 112 117 165 165 165 . 169 264 313 319 285 232 81 285 232 236 232 232 236 285 114 . . 272 357 Shots Fired 2067 | 25 104 22 169 6 122 115 59 53 . 152 144 69 23 37 80 3 70 26 73 13 58 84 405 22 1 . 35 97 Gun 1699 | 25 90 11 32 6 120 111 48 44 . 141 70 37 23 37 80 3 70 26 69 12 56 74 385 20 1 . 20 88 Cannon 290 | . 14 11 136 . . 3 1 9 . 5 74 31 . . . . . . . . . . . . . . . 6 Launcher 78 | . . . 1 . 2 1 10 . . 6 . 1 . . . . . . 4 1 2 10 20 2 . . 15 3 Special . | . . . . . . . . . . . . . . . . . . . . . . . . . . . . . Kinetic 943 | 23 52 11 6 . . 109 48 44 . 145 129 31 . 13 45 . 17 14 37 6 32 33 119 10 1 . 6 12 Thermal 1041 | 2 52 11 162 6 120 5 1 9 . 1 15 37 23 24 35 3 53 12 32 6 24 41 266 10 . . 9 82 Explosive 78 | . . . 1 . 2 1 10 . . 6 . 1 . . . . . . 4 1 2 10 20 2 . . 15 3 Electromagnetic 5 | . . . . . . . . . . . . . . . . . . . . . . . . . . . 5 . Robot Hit Streak 37 | 7 12 10 10 8 17 13 12 15 . 33 14 10 8 7 13 . 28 20 14 10 6 18 37 7 . . 17 37 Robot Miss Streak 5 | 1 4 3 4 1 5 4 4 3 . 4 4 2 2 3 4 . 1 1 3 2 3 2 4 1 . . 1 4 Penetration Max 1 | . . . . . . . . . . . 1 1 . . 1 . . 1 1 . 1 . 1 . . . . 1 Secondary Targets 33 | . 1 . . . . . 1 2 . 1 . 2 1 . 1 . 1 1 3 . 2 1 14 . . . 1 1 Max Gunslinging Chain 2 | . 1 . . . . . 1 1 . 1 . 1 1 . 1 . 1 1 1 . 1 1 2 . . . 1 1 Shots Hit Robots 1280 | 19 64 12 102 4 71 69 35 31 . 90 75 45 17 16 32 . 63 13 51 5 35 54 271 21 . 2 13 70 Core Hits 814 | 7 29 7 51 2 41 25 24 17 . 46 37 25 8 11 28 . 13 12 31 7 22 46 203 14 . 1 56 51 Critical Kills 34 | . . . 1 . . . . . . . . . . 3 6 . 2 4 3 1 1 1 11 . . . . 1 Critical Parts Destroyed 20 | . . . . . . . . . . . . . . . 2 . . . . . 3 4 8 1 . . . 2 Critical Strikes 94 | . 1 . 4 . 5 . . . . 1 2 3 . 5 9 . 6 5 4 1 7 8 26 1 . . . 6 Burn 32 | . 1 . 3 . 5 . . . . . 1 2 . 1 1 . 4 1 1 . 1 2 7 . . . . 2 Meltdown 1 | . . . 1 . . . . . . . . . . . . . . . . . . . . . . . . . Destroy 57 | . . . . . . . . . . . . . . 4 8 . 2 4 3 1 6 6 19 1 . . . 3 Blast 4 | . . . . . . . . . . 1 1 1 . . . . . . . . . . . . . . . 1 Melee Attacks 62 | . . . 5 . 2 16 14 3 . 7 . . . . . . . . . . . . . 5 . 2 . 8 Impact . | . . . . . . . . . . . . . . . . . . . . . . . . . . . . . Slashing 62 | . . . 5 . 2 16 14 3 . 7 . . . . . . . . . . . . . 5 . 2 . 8 Piercing . | . . . . . . . . . . . . . . . . . . . . . . . . . . . . . Sneak Attacks 17 | . . . . . 1 5 4 1 . 1 . . . . . . . . . . . . . 2 . . . 3 Combat Hostiles . | . . . . . . . . . . . . . . . . . . . . . . . . . . . . . Follow-up Attacks . | . . . . . . . . . . . . . . . . . . . . . . . . . . . . . Damage Inflicted 50100 | 235 912 200 2344 106 1682 1609 1431 919 . 2346 2446 1631 480 512 1565 . 1866 405 2441 277 1563 2977 12620 1138 . 201 3383 4811 Guns 26107 | 235 668 88 331 68 1235 1065 456 362 . 1544 830 619 480 512 1100 . 1866 405 1397 157 1489 1346 7137 392 . . 275 2050 Cannons 5445 | . 193 91 1734 . . 179 61 495 . 71 1485 880 . . . . . . . . . . . . . . . 256 Explosions 16102 | . . . 169 . 268 . 650 . . 636 . 105 . . 393 . . . 1044 117 74 1631 5386 285 . . 3108 2236 Melee 1746 | . . . . . 72 359 264 62 . 95 . . . . . . . . . . . . . 432 . 201 . 261 Ramming 700 | . 51 21 110 38 107 6 . . . . 131 27 . . 72 . . . . 3 . . 97 29 . . . 8 Kinetic 15102 | 225 421 88 42 . . 1065 456 362 . 1615 2099 880 . 227 660 . 447 272 845 132 1027 755 2768 220 . . 115 381 Thermal 16834 | 10 440 91 2023 68 1235 179 61 495 . . 216 619 480 285 440 . 1419 133 552 25 462 591 4823 172 . . 90 1925 Explosive 14829 | . . . 169 . 268 . 650 . . 636 . 105 . . . . . . 1044 117 74 1631 4506 285 . . 3108 2236 Electromagnetic 889 | . . . . . . . . . . . . . . . 393 . . . . . . . 426 . . . 70 . Impact . | . . . . . . . . . . . . . . . . . . . . . . . . . . . . . Slashing 1746 | . . . . . 72 359 264 62 . 95 . . . . . . . . . . . . . 432 . 201 . 261 Piercing . | . . . . . . . . . . . . . . . . . . . . . . . . . . . . . Highest Corruption 26 | . 1 1 . . . 1 1 . . . 1 1 1 2 1 . . 1 2 2 2 15 10 11 11 11 11 26 Average Corruption 3 | . 1 1 . . . 1 1 . . . 1 1 1 1 1 . . 1 1 2 1 7 7 10 11 11 11 3 Corruption Purged 7 | . . . . . . . 1 . . . . . . 3 . . . . 1 . . . . . . . . 2 Corruption Blocked . | . . . . . . . . . . . . . . . . . . . . . . . . . . . . . Effects 231 | . 3 6 . . . 10 1 . . . 1 16 5 3 7 . . 1 16 6 1 31 50 23 11 12 18 10 Message Errors 56 | . 1 . . . . 5 . . . . 1 6 1 . 2 . . . 2 1 . 8 10 4 2 4 6 3 Matter Fused 46 | . . 1 . . . . . . . . . 3 2 . 2 . . . 2 1 . 9 10 10 1 . 4 1 Heat Flow Errors 22 | . . 1 . . . 1 . . . . . 3 1 . . . . . 3 2 . 2 3 2 1 1 1 1 Energy Discharges 25 | . 1 2 . . . 1 1 . . . . 2 . . 1 . . . 1 2 . 2 4 1 1 3 3 . Parts Rejected 5 | . . . . . . . . . . . . . . . . . . . . . . 1 4 . . . . . Parts Fused 3 | . . . . . . . . . . . . . . . . . . . . . . 1 . . 1 . 1 . Data Loss (minor) 40 | . . 2 . . . 1 . . . . . 1 1 3 1 . . . 4 . 1 5 8 6 1 3 2 1 Data Loss (major) 12 | . . . . . . 2 . . . . . . . . . . . 1 1 . . . 3 . 3 . . 2 Misfires 8 | . . . . . . . . . . . . . . . 1 . . . 1 . . 2 2 . 1 . 1 . Alerts 4 | . 1 . . . . . . . . . . . . . . . . . 1 . . . . . . 1 . 1 Misdirections 1 | . . . . . . . . . . . . . . . . . . . . . . . . . . . . 1 Weapon Failures 9 | . . . . . . . . . . . . 1 . . . . . . 1 . . 1 6 . . . . . Overload Shots 15 | . . . . . . 3 1 8 . 1 1 . 1 . . . . . . . . . . . . . . . Effects 2 | . . . . . . 1 . 1 . . . . . . . . . . . . . . . . . . . . Energy Bleed 1 | . . . . . . . . 1 . . . . . . . . . . . . . . . . . . . . Heat Surge 1 | . . . . . . 1 . . . . . . . . . . . . . . . . . . . . . . Overflow Damage 1043 | . . . 24 6 73 62 91 61 . 38 27 11 . . 70 . . . . 20 . 18 186 164 . 25 71 96 Projectiles 65 | . . . 15 . . 7 . 7 . . 26 10 . . . . . . . . . . . . . . . . Explosions 441 | . . . 9 . 31 . . . . . . 1 . . 70 . . . . 20 . 18 168 13 . . 71 40 Melee 537 | . . . . 6 42 55 91 54 . 38 1 . . . . . . . . . . . 18 151 . 25 . 56 Knockbacks 14 | . . . . . . . . . . . 8 1 . . . . . . . . . . 2 . . . . 3 Impact 4 | . . . . . . . . . . . 1 . . . . . . . . . . . 2 . . . . 1 Kinetic 10 | . . . . . . . . . . . 7 1 . . . . . . . . . . . . . . . 2 Secondary . | . . . . . . . . . . . . . . . . . . . . . . . . . . . . . Self-Inflicted Damage 812 | . . . . . . . 23 . . . . . . . 94 . . . 187 . . 218 81 55 . . 26 128 Shots 18 | . . . . . . . 1 . . . . . . . 1 . . . 4 . . 4 2 2 . . 2 2 Rammed 56 | . 6 5 11 2 8 1 . . . . 10 3 . . 3 . . . . 1 . . 4 . . . . 2 Targets Rammed 68 | . 9 5 13 4 9 1 . . . . 11 3 . . 3 . . . . 1 . . 5 1 . . . 3 Kicked 1 | . 1 . . . . . . . . . . . . . . . . . . . . . . . . . . . Crushed 11 | . 2 . 2 2 1 . . . . . 1 . . . . . . . . . . . 1 1 . . . 1 Highest Temperature 539 | . 234 166 276 9 22 294 292 292 . 332 298 348 380 345 337 38 403 186 435 7 18 189 539 192 119 82 374 316 Average Temperature 98 | . 55 56 65 5 10 98 101 108 . 98 69 123 176 91 123 38 171 82 155 7 11 72 127 98 65 44 165 113 Received Heat Transfer 3013 | . 204 39 480 . 152 66 66 33 . 144 45 143 . . 44 . . . 46 8 41 242 668 42 . . 163 387 Effects 11 | . . . 2 . . . . . . 1 . 2 . . . . 1 . 1 . . . 3 . . . 1 . Shutdowns 2 | . . . . . . . . . . . . . . . . . . . 1 . . . . . . . 1 . Energy Bleed 6 | . . . 2 . . . . . . 1 . 2 . . . . 1 . . . . . . . . . . . Short Circuit 1 | . . . . . . . . . . . . . . . . . . . . . . . 1 . . . . . Damage (minor) 1 | . . . . . . . . . . . . . . . . . . . . . . . 1 . . . . . Damage (major) 1 | . . . . . . . . . . . . . . . . . . . . . . . 1 . . . . . Siege Activations 44 | . . . . . . . . . . . . . . . . . 4 1 4 . 1 4 24 1 . . . 5 Total Turns 527 | . . . . . . . . . . . . . . . . . 66 3 43 . 4 81 259 4 . . . 67 Longest Duration 47 | . . . . . . . . . . . . . . . . . 47 3 17 . 4 41 43 4 . . . 26 Robots Corrupted 4 | . . . . . . . . . . . 1 . . . 1 . . . . . . . 2 . . . . . Combat Hostiles . | . . . . . . . . . . . . . . . . . . . . . . . . . . . . . Parts Fried 11 | . . . . 1 . . . . . . 2 . . . 3 . . . . . . . 5 . . . . . Impact Corruptions 4 | . . . . 1 . . . . . . 1 . . . . . . . . . . . 2 . . . . . Robots Melted 7 | . . . 1 . 1 . . . . . 1 . . . . . . . . . . . 3 . . . . 1 Combat Hostiles 6 | . . . . . 1 . . . . . 1 . . . . . . . . . . . 3 . . . . 1 Parts Melted 63 | . 3 . 8 . 10 . . . . . . 4 1 . . . . . 3 . . 2 27 . . . . 5 Heat Transferred 29037 | 25 1221 185 4144 148 2997 150 50 437 . . 550 1550 909 596 740 . 2258 259 851 37 612 1071 7544 222 . . 148 2333 Parts Sabotaged . | . . . . . . . . . . . . . . . . . . . . . . . . . . . . . Parts Stolen . | . . . . . . . . . . . . . . . . . . . . . . . . . . . . . Parts Stripped . | . . . . . . . . . . . . . . . . . . . . . . . . . . . . . Power Chain Reactions 2 | . . . . . . . . . . . . . . . . . . . . . . . 2 . . . . . Alert | -11 -10 -10 -9 -9 -8 -7 -7 -7 -7 -6 -6 -6 -6 -6 -6 -5 -5 -5 -5 -5 -5 -4 -4 -4 -4 -4 -3 -3 ------- Run | Yrd Mat Min Mat Min Mat Fac Low Low Dat Pro Fac Ext Cet Arc Hub Fac Was Fac Upp Upp War Pro Fac Upp Upp Zhi Pro Res Peak Influence 1740 | 30 251 141 499 184 348 159 . . . . 323 364 188 217 1608 808 282 269 . . . . 1740 . . . . 215 Initial 787 | . 19 21 . 169 . 42 . . . . 112 158 127 . 75 787 282 . . . . . 9 . . . . 88 Average 248 | 12 112 84 195 140 164 50 . . . . 160 143 143 193 802 791 152 76 . . . . 696 . . . . 143 Maximum Alert Level 5 | . 1 . 2 . 1 . . . . . 1 1 . 1 5 3 1 1 . . . . 5 . . . . 1 Low Security (%) 67 | 100 95 100 67 100 77 100 . . . . 74 62 100 17 13 . 56 89 . . . . 18 . . . . 75 Level 1 17 | . 4 . 9 . 22 . . . . . 25 37 . 82 1 . 43 10 . . . . 24 . . . . 24 Level 2 4 | . . . 22 . . . . . . . . . . . 11 . . . . . . . 10 . . . . . Level 3 6 | . . . . . . . . . . . . . . . 62 100 . . . . . . 19 . . . . . Level 4 2 | . . . . . . . . . . . . . . . 6 . . . . . . . 19 . . . . . Level 5 . | . . . . . . . . . . . . . . . 6 . . . . . . . 1 . . . . . High Security . | . . . . . . . . . . . . . . . . . . . . . . . 5 . . . . . Max Security . | . . . . . . . . . . . . . . . . . . . . . . . . . . . . . Squads Dispatched 65 | . 3 . 4 . 2 3 . . . 2 7 2 . . 12 2 . 4 . . . 1 19 . . . 1 3 Investigation 16 | . 1 . 3 . . . . . . 2 1 . . . 3 . . 2 . . . . 3 . . . . 1 Extermination 17 | . . . . . . 2 . . . . 4 . . . 1 1 . 2 . . . . 5 . . . . 2 Reinforcement 17 | . 2 . 1 . 2 1 . . . . 2 2 . . 3 . . . . . . . 4 . . . . . Assault 12 | . . . . . . . . . . . . . . . 2 1 . . . . . 1 7 . . . 1 . Garrison 3 | . . . . . . . . . . . . . . . 3 . . . . . . . . . . . . . Intercept . | . . . . . . . . . . . . . . . . . . . . . . . . . . . . . Searches Triggered . | . . . . . . . . . . . . . . . . . . . . . . . . . . . . . Construction Impeded 4 | . . . . . . . . . . . . 1 . . 1 . . . . . . . 2 . . . . . Haulers Reinforced 3 | . . . . . . 1 . . . . 2 . . . . . . . . . . . . . . . . . Active Scanning Responses . | . . . . . . . . . . . . . . . . . . . . . . . . . . . . . Cargo Convoy Interrupts 1 | . . . . . . . . . . . . . . . . . . . . . . . . . . . . 1 Stealth | -11 -10 -10 -9 -9 -8 -7 -7 -7 -7 -6 -6 -6 -6 -6 -6 -5 -5 -5 -5 -5 -5 -4 -4 -4 -4 -4 -3 -3 --------- Run | Yrd Mat Min Mat Min Mat Fac Low Low Dat Pro Fac Ext Cet Arc Hub Fac Was Fac Upp Upp War Pro Fac Upp Upp Zhi Pro Res Distress Signals 26 | . 3 1 4 . 2 1 . . . 2 1 . 1 . 5 . . . . . 4 . 2 . . . . . Communications Jammed 21 | . . . . . . . . . . . . . . . . . . . . . . . 7 . . . . 14 Distress Signals 20 | . . . . . . . . . . . . . . . . . . . . . . . 6 . . . . 14 Times Spotted 536 | . 24 5 43 . 28 12 10 8 . 28 22 21 6 9 37 1 5 16 14 6 75 19 101 4 . . 13 29 Peak Tracking Total 12 | . 5 2 7 . 7 2 4 3 . 5 3 5 5 2 8 3 3 5 7 4 12 7 8 3 . . 8 12 Tactical Retreats 15 | . 2 . 1 . 3 . . . . . . 1 . . 2 . . . . . 5 . 1 . . . . . Traps | -11 -10 -10 -9 -9 -8 -7 -7 -7 -7 -6 -6 -6 -6 -6 -6 -5 -5 -5 -5 -5 -5 -4 -4 -4 -4 -4 -3 -3 ------- Run | Yrd Mat Min Mat Min Mat Fac Low Low Dat Pro Fac Ext Cet Arc Hub Fac Was Fac Upp Upp War Pro Fac Upp Upp Zhi Pro Res Traps Triggered 11 | . 1 . . . . 2 . . . . . . . . . 1 . 4 . . . . 3 . . . . . Indirectly 2 | . . . . . . . . . . . . . . . . . . . . . . . 2 . . . . . Trap Hack Attempts . | . . . . . . . . . . . . . . . . . . . . . . . . . . . . . Triggered . | . . . . . . . . . . . . . . . . . . . . . . . . . . . . . Disarmed . | . . . . . . . . . . . . . . . . . . . . . . . . . . . . . Reprogrammed . | . . . . . . . . . . . . . . . . . . . . . . . . . . . . . Reused . | . . . . . . . . . . . . . . . . . . . . . . . . . . . . . Traps Extracted . | . . . . . . . . . . . . . . . . . . . . . . . . . . . . . Installed . | . . . . . . . . . . . . . . . . . . . . . . . . . . . . . Triggered 27 | . . . . . . . . . . . . . . . . . . . . . 24 . . 1 . . . 2 Machines | -11 -10 -10 -9 -9 -8 -7 -7 -7 -7 -6 -6 -6 -6 -6 -6 -5 -5 -5 -5 -5 -5 -4 -4 -4 -4 -4 -3 -3 ---------- Run | Yrd Mat Min Mat Min Mat Fac Low Low Dat Pro Fac Ext Cet Arc Hub Fac Was Fac Upp Upp War Pro Fac Upp Upp Zhi Pro Res Machines Disabled 55 | . . . . . . 1 . . . 3 2 2 3 2 14 . . 1 1 . 2 1 20 . . . 2 1 Max in Single Turn 11 | . . . . . . 1 . . . 1 . 1 1 . 11 . . 1 1 . . 1 3 . . . 2 1 Garrison Access 4 | . . . . . . . . . . . . . . . 1 1 . 1 . . . . 1 . . . . . Network Hub 1 | . . . . . . . . . . . . . . . 1 . . . . . . . . . . . . . Machines Repaired . | . . . . . . . . . . . . . . . . . . . . . . . . . . . . . Machines Dismantled . | . . . . . . . . . . . . . . . . . . . . . . . . . . . . . Machines Sabotaged . | . . . . . . . . . . . . . . . . . . . . . . . . . . . . . Overloaded Fab Kills . | . . . . . . . . . . . . . . . . . . . . . . . . . . . . . Hacking | -11 -10 -10 -9 -9 -8 -7 -7 -7 -7 -6 -6 -6 -6 -6 -6 -5 -5 -5 -5 -5 -5 -4 -4 -4 -4 -4 -3 -3 --------- Run | Yrd Mat Min Mat Min Mat Fac Low Low Dat Pro Fac Ext Cet Arc Hub Fac Was Fac Upp Upp War Pro Fac Upp Upp Zhi Pro Res Machines Accessed 97 | . 8 1 8 . 9 10 . . 3 3 9 5 . . 7 2 . 10 1 1 1 . 11 . . 4 . 4 Terminals 56 | . 6 . 6 . 8 5 . . . 1 5 5 . . 6 1 . 4 . . . . 6 . . . . 3 Fabricators 7 | . . . . . . 2 . . . 1 2 . . . . . . 2 . . . . . . . . . . Repair Stations 7 | . 1 . 1 . 1 . . . . . . . . . . . . 1 . . . . 2 . . . . 1 Recycling Units 9 | . 1 . 1 . . 2 . . . 1 2 . . . . . . 1 . . . . 1 . . . . . Scanalyzers . | . . . . . . . . . . . . . . . . . . . . . . . . . . . . . Garrison Access 7 | . . . . . . 1 . . . . . . . . 1 1 . 2 . . . . 2 . . . . . Total Hacks 308 | . 19 1 30 . 33 24 . . 25 5 23 16 . . 18 2 . 38 1 1 4 . 41 . . 17 . 10 Successful 173 | . 11 1 20 . 23 11 . . 25 3 11 8 . . 5 1 . 15 1 1 4 . 14 . . 17 . 2 Failed 134 | . 7 . 10 . 10 13 . . . 2 12 8 . . 13 1 . 23 . . . . 27 . . . . 8 Catastrophic 29 | . 1 . 2 . . 3 . . . . 5 2 . . 6 1 . 1 . . . . 5 . . . . 3 Database Lockouts 1 | . 1 . . . . . . . . . . . . . . . . . . . . . . . . . . . Manual 137 | . 15 . 26 . 21 13 . . . 1 13 11 1 . 8 . . 15 . . 1 . 6 . . . . 6 Terminals 188 | . 16 . 27 . 30 15 . . . 1 12 16 . . 16 1 . 21 . . . . 24 . . . . 9 Fabricators 14 | . . . . . . 5 . . . 1 4 . . . . . . 4 . . . . . . . . . . Repair Stations 21 | . 2 . 1 . 3 . . . . . . . . . . . . 2 . . . . 12 . . . . 1 Recycling Units 19 | . 1 . 2 . . 3 . . . 3 7 . . . . . . 2 . . . . 1 . . . . . Scanalyzers . | . . . . . . . . . . . . . . . . . . . . . . . . . . . . . Garrison Access 17 | . . . . . . 1 . . . . . . . . 2 1 . 9 . . . . 4 . . . . . Terminal Hacks 95 | . 2 1 6 . 12 5 . . 25 1 2 3 . . 3 . . 5 1 1 4 . 6 . . 17 . 1 Record 11 | . . . . . . . . . 6 . . . . . . . . . . . . . . . . 5 . . Part Schematic 18 | . . . . . . 1 . . 12 . . . . . . . . 1 . . . . . . . 4 . . Robot Schematic 4 | . . . . . . . . . 4 . . . . . . . . . . . . . . . . . . . Robot Analysis 9 | . 1 . . . 2 . . . . . . 1 . . . . . . . . . . 1 . . 4 . . Prototype ID Bank 17 | . . . . . 2 1 . . 3 . 1 1 . . . . . 1 . . 4 . . . . 4 . . Open Door 4 | . . 1 . . . . . . . 1 . . . . . . . . 1 1 . . . . . . . . Level Access Points 1 | . . . . . 1 . . . . . . . . . . . . . . . . . . . . . . . Branch Access Points 5 | . . . 1 . 1 . . . . . 1 . . . . . . 1 . . . . 1 . . . . . Machine Index 1 | . . . . . . . . . . . . . . . . . . . . . . . . . . . . 1 Terminal Index 4 | . . . . . 1 . . . . . . . . . 1 . . 1 . . . . 1 . . . . . Alert Level 5 | . . . 2 . 1 1 . . . . . 1 . . . . . . . . . . . . . . . . Unreport Threat 2 | . . . . . . . . . . . . . . . . . . . . . . . 2 . . . . . Locate Traps 5 | . 1 . 1 . 2 . . . . . . . . . . . . . . . . . 1 . . . . . Transport Status 1 | . . . . . . 1 . . . . . . . . . . . . . . . . . . . . . . Hauler Manifests 1 | . . . 1 . . . . . . . . . . . . . . . . . . . . . . . . . Zone Layout 7 | . . . 1 . 2 1 . . . . . . . . 2 . . 1 . . . . . . . . . . Fabricator Hacks 6 | . . . . . . 1 . . . . 4 . . . . . . 1 . . . . . . . . . . Network Status 3 | . . . . . . 1 . . . . 1 . . . . . . 1 . . . . . . . . . . Load Schematic 1 | . . . . . . . . . . . 1 . . . . . . . . . . . . . . . . . Build 2 | . . . . . . . . . . . 2 . . . . . . . . . . . . . . . . . Repair Station Hacks 10 | . 2 . . . 2 . . . . . . . . . . . . . . . . . 6 . . . . . Scan Component 5 | . 1 . . . 1 . . . . . . . . . . . . . . . . . 3 . . . . . Repair 5 | . 1 . . . 1 . . . . . . . . . . . . . . . . . 3 . . . . . Recycling Unit Hacks 2 | . . . . . . . . . . 1 1 . . . . . . . . . . . . . . . . . Retrieve Components 2 | . . . . . . . . . . 1 1 . . . . . . . . . . . . . . . . . Scanalyzer . | . . . . . . . . . . . . . . . . . . . . . . . . . . . . . Garrison Access Hacks 4 | . . . . . . . . . . . . . . . 1 1 . 1 . . . . 1 . . . . . Seal Access 4 | . . . . . . . . . . . . . . . 1 1 . 1 . . . . 1 . . . . . Unauthorized Hacks 56 | . 7 . 14 . 9 5 . . . 1 4 5 . . 1 . . 8 . . . . 1 . . . . 1 Terminals 43 | . 6 . 11 . 8 3 . . . . 2 5 . . 1 . . 5 . . . . 1 . . . . 1 Track 3 | . . . 1 . 1 . . . . . 1 . . . . . . . . . . . . . . . . . Assimilate 2 | . . . 2 . . . . . . . . . . . . . . . . . . . . . . . . . Botnet 14 | . 2 . 2 . 2 1 . . . . 1 2 . . 1 . . 1 . . . . 1 . . . . 1 Operators 2 | . 1 . 1 . . . . . . . . . . . . . . . . . . . . . . . . . Skim 22 | . 3 . 5 . 5 2 . . . . . 3 . . . . . 4 . . . . . . . . . . Fabricators 4 | . . . . . . 1 . . . 1 . . . . . . . 2 . . . . . . . . . . Liberate 1 | . . . . . . . . . . . . . . . . . . 1 . . . . . . . . . . Haulers 2 | . . . . . . 1 . . . . . . . . . . . 1 . . . . . . . . . . Recompile 1 | . . . . . . . . . . 1 . . . . . . . . . . . . . . . . . . Repair Stations 3 | . . . 1 . 1 . . . . . . . . . . . . 1 . . . . . . . . . . Mechanics 2 | . . . . . 1 . . . . . . . . . . . . 1 . . . . . . . . . . Patch 1 | . . . 1 . . . . . . . . . . . . . . . . . . . . . . . . . Recycling Units 6 | . 1 . 2 . . 1 . . . . 2 . . . . . . . . . . . . . . . . . Recyclers 3 | . . . 1 . . 1 . . . . 1 . . . . . . . . . . . . . . . . . Mask 1 | . . . . . . . . . . . 1 . . . . . . . . . . . . . . . . . Tunnel 2 | . 1 . 1 . . . . . . . . . . . . . . . . . . . . . . . . . Scanalyzers . | . . . . . . . . . . . . . . . . . . . . . . . . . . . . . Garrison Access . | . . . . . . . . . . . . . . . . . . . . . . . . . . . . . Data Cores Recovered 2 | . . . . . . 1 . . . . . . . . 1 . . . . . . . . . . . . . Used 1 | . . . . . . 1 . . . . . . . . . . . . . . . . . . . . . . Hacking Detections 71 | . 5 . 5 . 8 10 . . . 1 8 5 1 . 6 1 . 8 . . . . 9 . . . . 4 Full Trace Events 6 | . . . . . . . . . . . 1 . . . 2 . . 1 . . . . 1 . . . . 1 Feedback Events 1 | . . . . . . . . . . . . . . . 1 . . . . . . . . . . . . . Corruption 1 | . . . . . . . . . . . . . . . 1 . . . . . . . . . . . . . Feedback Blocked . | . . . . . . . . . . . . . . . . . . . . . . . . . . . . . Robot Schematics Acquired 4 | . . . . . . . . . 4 . . . . . . . . . . . . . . . . . . . Robots Built . | . . . . . . . . . . . . . . . . . . . . . . . . . . . . . Authchips . | . . . . . . . . . . . . . . . . . . . . . . . . . . . . . Time . | . . . . . . . . . . . . . . . . . . . . . . . . . . . . . Total Robot Build Rating . | . . . . . . . . . . . . . . . . . . . . . . . . . . . . . Part Schematics Acquired 18 | . . . . . . 1 . . 12 . . . . . . . . 1 . . . . . . . 4 . . Parts Built 3 | . . . . . . . . . . . 3 . . . . . . . . . . . . . . . . . Authchips 1 | . . . . . . . . . . . 1 . . . . . . . . . . . . . . . . . Time 293 | . . . . . . . . . . . 293 . . . . . . . . . . . . . . . . . Total Part Build Rating 19 | . . . . . . . . . . . 19 . . . . . . . . . . . . . . . . . Parts Repaired 5 | . 1 . . . 1 . . . . . . . . . . . . . . . . . 3 . . . . . Time 295 | . 26 . . . 51 . . . . . . . . . . . . . . . . . 218 . . . . . Parts Recycled . | . . . . . . . . . . . . . . . . . . . . . . . . . . . . . Recycled Matter . | . . . . . . . . . . . . . . . . . . . . . . . . . . . . . Retrieved Matter . | . . . . . . . . . . . . . . . . . . . . . . . . . . . . . Retrieved Components 10 | . . . . . . . . . . 10 . . . . . . . . . . . . . . . . . . Parts Scanalyzed . | . . . . . . . . . . . . . . . . . . . . . . . . . . . . . Part Schematics Acquired . | . . . . . . . . . . . . . . . . . . . . . . . . . . . . . Parts Damaged . | . . . . . . . . . . . . . . . . . . . . . . . . . . . . . Bothacking | -11 -10 -10 -9 -9 -8 -7 -7 -7 -7 -6 -6 -6 -6 -6 -6 -5 -5 -5 -5 -5 -5 -4 -4 -4 -4 -4 -3 -3 ------------ Run | Yrd Mat Min Mat Min Mat Fac Low Low Dat Pro Fac Ext Cet Arc Hub Fac Was Fac Upp Upp War Pro Fac Upp Upp Zhi Pro Res Used RIF Installer . | . . . . . . . . . . . . . . . . . . . . . . . . . . . . . Robots Hacked . | . . . . . . . . . . . . . . . . . . . . . . . . . . . . . Non-combat . | . . . . . . . . . . . . . . . . . . . . . . . . . . . . . Combat . | . . . . . . . . . . . . . . . . . . . . . . . . . . . . . Robot Hacks Applied . | . . . . . . . . . . . . . . . . . . . . . . . . . . . . . Relay Couplers Released . | . . . . . . . . . . . . . . . . . . . . . . . . . . . . . Fabnet Peak Effective % . | . . . . . . . . . . . . . . . . . . . . . . . . . . . . . Robots Rewired 32 | . . . . . . . . . . 11 . 12 . . . . . . 2 . 5 . . . . . 2 . Allies Hacked 1 | . . . . . . . . . . . . . . . . . . . . . 1 . . . . . . . Hacks Repelled . | . . . . . . . . . . . . . . . . . . . . . . . . . . . . . Allies | -11 -10 -10 -9 -9 -8 -7 -7 -7 -7 -6 -6 -6 -6 -6 -6 -5 -5 -5 -5 -5 -5 -4 -4 -4 -4 -4 -3 -3 -------- Run | Yrd Mat Min Mat Min Mat Fac Low Low Dat Pro Fac Ext Cet Arc Hub Fac Was Fac Upp Upp War Pro Fac Upp Upp Zhi Pro Res Total Allies 67 | . . . 1 . . . . . . 11 . 21 5 . . . 20 . 2 . 5 . . . . . 2 . Largest Group 20 | . . . 1 . . . . . . 11 2 10 9 9 6 1 20 20 2 2 7 . . . . . 2 . Highest-Rated Group 798 | . . . 10 . . . . . . 258 82 420 705 705 500 96 798 798 59 56 341 . . . . . 95 . Highest-Rated Ally 159 | . . . 10 . . . . . . 41 41 159 159 146 96 96 96 96 30 30 65 . . . . . 48 . Total Orders 46 | . . . . . . . . . . . . . 2 . . . . 12 . . 14 . 18 . . . . . STAY 17 | . . . . . . . . . . . . . . . . . . 1 . . 9 . 7 . . . . . ROAM 1 | . . . . . . . . . . . . . 1 . . . . . . . . . . . . . . . FOLLOW 7 | . . . . . . . . . . . . . 1 . . . . 1 . . 5 . . . . . . . EXPLORE 14 | . . . . . . . . . . . . . . . . . . 7 . . . . 7 . . . . . RETURN 7 | . . . . . . . . . . . . . . . . . . 3 . . . . 4 . . . . . Ally Attacks 535 | . . . . . . . . . . 109 19 97 37 22 95 1 28 57 6 6 49 . . . . . 9 . Total Damage 12985 | . . . . . . . . . . 1550 548 2084 603 653 3519 47 1160 1309 114 88 1031 . . . . . 279 . Kills 81 | . . . . . . . . . . 14 2 8 3 3 24 . 2 10 2 2 10 . . . . . 1 . Allies Corrupted 3 | . . . . . . . . . . . . . . . . . . 2 . . 1 . . . . . . . Allies Melted 1 | . . . . . . . . . . . . 1 . . . . . . . . . . . . . . . . Intel | -11 -10 -10 -9 -9 -8 -7 -7 -7 -7 -6 -6 -6 -6 -6 -6 -5 -5 -5 -5 -5 -5 -4 -4 -4 -4 -4 -3 -3 ------- Run | Yrd Mat Min Mat Min Mat Fac Low Low Dat Pro Fac Ext Cet Arc Hub Fac Was Fac Upp Upp War Pro Fac Upp Upp Zhi Pro Res Robot Analysis Total 9 | . 1 . . . 2 . . . . . . 1 . . . . . . . . . . 1 . . 4 . . Derelict Logs Recovered 13 | . . . . 1 . . 2 3 . 1 . . . . . . . . 1 1 . 2 . 1 1 . . . Drone Launches 16 | . . . . . . . . . . . . . . . . . . 9 . . . . 7 . . . . . Drone Recoveries 9 | . . . . . . . . . . . . . . . . . . 4 . . . . 5 . . . . . Exploration | -11 -10 -10 -9 -9 -8 -7 -7 -7 -7 -6 -6 -6 -6 -6 -6 -5 -5 -5 -5 -5 -5 -4 -4 -4 -4 -4 -3 -3 ------------- Run | Yrd Mat Min Mat Min Mat Fac Low Low Dat Pro Fac Ext Cet Arc Hub Fac Was Fac Upp Upp War Pro Fac Upp Upp Zhi Pro Res Turns Passed 32246 | 139 1615 480 2065 505 2570 1665 1525 1555 130 1680 1570 1475 475 300 775 360 915 1587 1463 835 1975 880 2752 773 350 360 580 892 Spaces Moved 16254 | 62 882 270 928 278 1303 814 829 860 75 668 727 696 236 55 414 204 444 919 803 505 1018 461 1259 425 219 191 301 408 Core 24 | 13 . . . . . . . . . . . . . . . . . . . . . . . . . 1 . 10 Treads 16013 | . 716 270 928 278 1303 814 829 860 75 668 727 696 236 55 414 204 444 919 803 505 1018 461 1259 425 219 190 301 396 Legs 217 | 49 166 . . . . . . . . . . . . . . . . . . . . . . . . . . 2 Wheels . | . . . . . . . . . . . . . . . . . . . . . . . . . . . . . Hover . | . . . . . . . . . . . . . . . . . . . . . . . . . . . . . Flight . | . . . . . . . . . . . . . . . . . . . . . . . . . . . . . Fastest Speed 50 | 50 120 160 160 160 160 170 170 170 170 166 165 165 160 160 160 160 160 160 160 160 160 160 160 160 160 160 160 50 Average Speed 164 | 105 152 160 160 160 167 179 170 171 170 199 167 165 164 160 160 160 160 160 160 160 160 160 160 160 160 168 160 157 Slowest Speed 1650 | 120 160 160 160 160 170 250 250 250 170 250 170 165 166 160 160 160 160 160 160 160 160 160 160 160 160 1650 160 240 Overloaded Moves . | . . . . . . . . . . . . . . . . . . . . . . . . . . . . . Propulsion Burnouts . | . . . . . . . . . . . . . . . . . . . . . . . . . . . . . Robots Hopped . | . . . . . . . . . . . . . . . . . . . . . . . . . . . . . Cave-ins Triggered . | . . . . . . . . . . . . . . . . . . . . . . . . . . . . . Exploration Rate (%) 60 | 5 97 59 76 67 88 19 92 94 68 69 23 83 66 73 36 6 94 36 96 76 79 70 41 66 45 59 47 14 Regions Visited 28 Branch Regions 18 Pre-discovered Areas 17 | . 1 . 1 . 3 . 2 2 1 1 . . . . . . . . . . . 1 . 1 1 3 . . Known Exits Taken 9 | . . . 1 1 1 1 . . . 1 1 . . . . . . 1 . 1 . . 1 . . . . . Unknown Exits Taken 17 | 1 1 1 . . . . 1 1 1 . . 1 1 1 1 . . . 1 . 1 1 . 1 1 1 1 . Scrap Searched 30 | . . 1 . 3 . . 4 6 . 1 . . . . . . . . 5 2 . 1 . 2 1 . 4 . Spaces Dug 90 | . . . 4 . 1 17 8 1 . 11 16 . . . 1 3 . . . 4 . . 19 . . . . 5 Terrain Destroyed 1035 | . . . 17 . 20 18 83 1 . 28 43 21 . 9 180 3 . 5 38 7 10 128 188 30 . . 147 59 Melee 28 | . . . 4 . 1 7 8 1 . 2 . . . . . . . . . . . . . . . . . 5 Projectile 185 | . . . . . . 1 . . . 1 43 10 . 9 15 3 . 5 12 3 3 13 58 1 . . 2 6 AOE 822 | . . . 13 . 19 10 75 . . 25 . 11 . . 165 . . . 26 4 7 115 130 29 . . 145 48 Terrain Rammed . | . . . . . . . . . . . . . . . . . . . . . . . . . . . . . Walls Destroyed . | . . . . . . . . . . . . . . . . . . . . . . . . . . . . . Machines Disabled . | . . . . . . . . . . . . . . . . . . . . . . . . . . . . . Actions | -11 -10 -10 -9 -9 -8 -7 -7 -7 -7 -6 -6 -6 -6 -6 -6 -5 -5 -5 -5 -5 -5 -4 -4 -4 -4 -4 -3 -3 --------- Run | Yrd Mat Min Mat Min Mat Fac Low Low Dat Pro Fac Ext Cet Arc Hub Fac Was Fac Upp Upp War Pro Fac Upp Upp Zhi Pro Res Total 20268 | 108 1050 294 1319 329 1570 958 893 908 78 942 983 966 307 242 471 236 599 1022 933 523 1327 542 1774 490 219 227 371 587 Wait 1694 | 8 47 7 184 41 118 31 13 1 4 24 140 92 27 168 16 16 109 51 68 9 162 29 235 23 1 . 12 58 Move 16227 | 61 881 269 927 277 1302 813 828 859 74 667 726 695 235 54 413 204 443 918 802 504 1017 460 1258 424 218 190 300 408 Hop . | . . . . . . . . . . . . . . . . . . . . . . . . . . . . . Pick Up 174 | 9 18 1 16 1 12 9 2 . . 3 10 3 6 . 6 3 3 7 1 2 4 2 27 8 . 5 4 12 Fast Attach 120 | 4 6 . 4 . 5 11 . 2 . 7 7 1 6 3 . . 7 9 1 . 11 1 8 . . 11 5 11 Attach 79 | 3 2 . 3 . 4 2 . . . . 3 . 2 . . 3 1 . 1 . . 6 19 5 . 1 6 18 Detach 17 | . 4 . . . 1 . . . . . . . . . . . . . . . . 2 2 2 . . 3 3 Swap 384 | . 11 . 52 2 26 26 13 23 . 26 17 13 9 4 9 4 9 13 13 2 12 8 61 6 . 3 2 20 Drop 263 | . 20 1 30 1 29 18 1 3 . 11 16 5 14 3 1 3 7 16 3 1 17 1 20 4 . 15 6 17 Fire 777 | 23 52 11 85 3 62 31 22 17 . 45 53 24 8 10 23 3 20 7 22 4 18 33 139 12 . . 21 29 Melee 62 | . . . 5 . 2 16 14 3 . 7 . . . . . . . . . . . . . 5 . 2 . 8 Ram . | . . . . . . . . . . . . . . . . . . . . . . . . . . . . . Kick 1 | . 1 . . . . . . . . . . . . . . . . . . . . . . . . . . . Crush 67 | . 8 5 13 4 9 1 . . . . 11 3 . . 3 . . . . 1 . . 5 1 . . . 3 Escape Stasis . | . . . . . . . . . . . . . . . . . . . . . . . . . . . . . Rewire 402 | . . . . . . . . . . 152 . 130 . . . . . . 22 . 86 . . . . . 12 . Trap . | . . . . . . . . . . . . . . . . . . . . . . . . . . . . . Miscellaneous 1 | . . . . . . . . . . . . . . . . . . 1 . . . . . . . . . . Route ------- -11/Scrapyard -10/Materials (discovered 4 exits: *Mat x3 / *Min) -10/Mines -9/Materials (discovered 5 exits: *Mat x3 / *Min x2) -9/Mines (discovered 2 exits: *Mat x2) -8/Materials (discovered 3 exits: *Fac x3) -7/Factory (discovered 3 exits: *Fac x2 / *Low) -7/Lower Caves -7/Lower Caves (discovered 2 exits: *Fac / *Dat) -7/Data Miner -6/Proximity Caves -6/Factory (discovered 4 exits: *Low x2 / *Ext x2) -6/Extension (discovered 2 exits: *Fac / *Cet) -6/Cetus -6/Archives -6/Hub_04(d) -5/Factory -5/Waste -5/Factory (discovered 4 exits: *Fac x2 / *Upp x2) -5/Upper Caves -5/Upper Caves (discovered 2 exits: *Fac / *War) -5/Warlord -4/Proximity Caves -4/Factory (discovered 3 exits: *Res / *Upp x2) -4/Upper Caves -4/Upper Caves (discovered 2 exits: *Res / *Zhi) -4/Zhirov -3/Proximity Caves -3/Research History --------- Turn | Location | Event 3 | -11/Scrapyard | Discovered new exit (range 16) 140 | -11/Scrapyard | Entered Materials 306 | -10/Materials | Build established: Mutant 417 | -10/Materials | Discovered new exit (range 3) 772 | -10/Materials | Discovered new exit (range 6) 897 | -10/Materials | Central database locked down 978 | -10/Materials | Discovered new exit (range 5) 995 | -10/Materials | Discovered new exit (range 13) 1256 | -10/Materials | Repaired Assault Rifle 1755 | -10/Materials | Entered Mines 2023 | -10/Mines | Discovered new exit (range 12) 2067 | -10/Mines | Met a Derelict who couldn't figure out how to use a Trap Extractor 2235 | -10/Mines | Entered Materials 2235 | -9/Materials | Evolved 2 slots: Propulsion x1, Utility x1 2539 | -9/Materials | Discovered new exit (range 12) 2931 | -9/Materials | Build established: Scavenger-Mutant 3111 | -9/Materials | Discovered new exit (range 6) 3614 | -9/Materials | Discovered new exit (range 9) 3894 | -9/Materials | Identified exit to Mines 3961 | -9/Materials | Identified exit to Materials 4020 | -9/Materials | Learned 2 Storage zone layouts 4135 | -9/Materials | Learned Storage trap positions 4172 | -9/Materials | Learned Storage emergency access door positions 4220 | -9/Materials | Learned location of 1 exit from Recycling 4300 | -9/Materials | Entered Mines 4346 | -9/Mines | Learned Materials stockpile data 4805 | -9/Mines | Entered Materials 4805 | -8/Materials | Evolved 2 slots: Utility x2 5189 | -8/Materials | Met 7R-MNS 5283 | -8/Materials | Repaired Cld. Ion Engine 5462 | -8/Materials | Discovered new exit (range 16) 5614 | -8/Materials | Learned location of Zion (-6) 5678 | -8/Materials | Learned Storage security intel 5731 | -8/Materials | Learned 2 Lower Caves zone layouts 5831 | -8/Materials | Learned 4 Factory zone layouts 5862 | -8/Materials | Learned location of Lower Caves (-7) 5903 | -8/Materials | Learned Storage emergency access door positions 6146 | -8/Materials | Identified exit to Factory 7375 | -8/Materials | Entered Factory 7375 | -7/Factory | Evolved 2 slots: Weapon x2 7376 | -7/Factory | Caught up to 7R-MNS 7376 | -7/Factory | Identified exit to Lower Caves 7377 | -7/Factory | Identified exit to Factory 7682 | -7/Factory | Build established: Tank 7865 | -7/Factory | Discovered exit to Factory (range 15) 9040 | -7/Factory | Entered Lower Caves 10409 | -7/Lower Caves | Discovered new exit (range 6) 10565 | -7/Lower Caves | Entered another Lower Caves area 10607 | -7/Lower Caves | Discovered exit to Factory (range 13) 10624 | -7/Lower Caves | Learned Factory security intel 10922 | -7/Lower Caves | Spotted B-75 Beast 10930 | -7/Lower Caves | Destroyed B-75 Beast 11519 | -7/Lower Caves | Discovered new exit (range 7) 11863 | -7/Lower Caves | Encountered a Warlord checkpoint 12120 | -7/Lower Caves | Entered Data Miner 12120 | -7/Data Miner | Discovered new exit (range 6) 12153 | -7/Data Miner | Met Data Miner 12183 | -7/Data Miner | Learned location of Section 7 (-3) 12183 | -7/Data Miner | Acquired the access code to Warlord's prototype stash 12207 | -7/Data Miner | Received God Mode back door access code from Data Miner 12250 | -7/Data Miner | Entered Proximity Caves 12540 | -6/Proximity Caves | Spotted B-75 Beast 12963 | -6/Proximity Caves | Snuck into a huge 0b10 base via the rear entrance 13259 | -6/Proximity Caves | Discovered exit to Factory (range 5) 13488 | -6/Proximity Caves | Build established: Commander-Tank 13488 | -6/Proximity Caves | Lost 5 allies 13822 | -6/Proximity Caves | Lost 3 allies 13930 | -6/Proximity Caves | Entered Factory 13930 | -6/Factory | Accompanied by 2 allies 13930 | -6/Factory | Evolved 2 slots: Propulsion x1, Utility x1 14118 | -6/Factory | Discovered new exit (range 12) 14141 | -6/Factory | Identified exit to Lower Caves 14239 | -6/Factory | Build established: Scavenger-Tank 14766 | -6/Factory | Identified exit to Extension 14969 | -6/Factory | Fabricated Adv. Cooling System? 15166 | -6/Factory | Build established: Tank 15174 | -6/Factory | Fabricated Adv. Plasma Rifle (x1) 15500 | -6/Factory | Entered Extension 15557 | -6/Extension | Rescued a captive Derelict 15957 | -6/Extension | Rescued A7 16350 | -6/Extension | Build established: Commander-Tank 16418 | -6/Extension | Spotted B-75 Beast 16433 | -6/Extension | Spotted B-75 Beast 16438 | -6/Extension | Allies destroyed B-75 Beast 16477 | -6/Extension | Destroyed B-75 Beast 16496 | -6/Extension | Lost 8 allies 16516 | -6/Extension | Rescued a captive Derelict 16516 | -6/Extension | Rescued a captive Derelict 16560 | -6/Extension | Rescued a captive Derelict 16582 | -6/Extension | Rescued a captive Derelict 16599 | -6/Extension | Rescued a captive Derelict 16605 | -6/Extension | Rescued a captive Derelict 16685 | -6/Extension | Rescued a captive Derelict 16772 | -6/Extension | Build established: Tank 16926 | -6/Extension | Discovered new exit (range 10) 16928 | -6/Extension | Discovered new exit (range 6) 16975 | -6/Extension | Entered Cetus 16975 | -6/Cetus | Accompanied by 8 allies (A7) 16980 | -6/Cetus | Acquired a Cetus Manufacturing Module code from A7 17001 | -6/Cetus | Spotted Cetus Guard 17001 | -6/Cetus | Spotted Cetus Guard 17006 | -6/Cetus | Spotted Cetus Guard 17007 | -6/Cetus | Spotted Cetus Guard 17016 | -6/Cetus | Destroyed Cetus Guard 17019 | -6/Cetus | Destroyed Cetus Guard 17019 | -6/Cetus | Allies destroyed Cetus Guard 17030 | -6/Cetus | Allies destroyed Cetus Guard 17047 | -6/Cetus | Lost 4 allies 17111 | -6/Cetus | Started Cetus Manufacturing Module 17136 | -6/Cetus | Manufactured an Enhanced Grunt 17161 | -6/Cetus | Manufactured an Enhanced Grunt 17186 | -6/Cetus | Manufactured an Enhanced Grunt 17211 | -6/Cetus | Manufactured an Enhanced Grunt 17236 | -6/Cetus | Manufactured an Enhanced Grunt 17245 | -6/Cetus | Escorted A7 to Cetus Mainframe 17403 | -6/Cetus | Discovered new exit (range 15) 17450 | -6/Cetus | Entered Archives 17450 | -6/Archives | Accompanied by 9 allies (A7) 17455 | -6/Archives | Received a hacking code to weaken MAIN.C 17675 | -6/Archives | Discovered new exit (range 15) 17750 | -6/Archives | Entered Hub_04(d) 17750 | -6/Hub_04(d) | Accompanied by 6 allies 17782 | -6/Hub_04(d) | Build established: Scavenger-Tank 17857 | -6/Hub_04(d) | Garrison activated, responded to threat 17871 | -6/Hub_04(d) | Found Prototype Device 17884 | -6/Hub_04(d) | Lost 3 allies 18100 | -6/Hub_04(d) | First assault squad dispatched 18296 | -6/Hub_04(d) | Identified Exp. Thermal Shield 18328 | -6/Hub_04(d) | Discovered new exit (range 14) 18475 | -6/Hub_04(d) | Network Hub disabled 18525 | -6/Hub_04(d) | Entered Factory 18525 | -5/Factory | Accompanied by 1 ally 18525 | -5/Factory | Evolved 2 slots: Power x1, Utility x1 18825 | -5/Factory | First assault squad dispatched 18885 | -5/Factory | Sucked down chute 18885 | -5/Factory | Entered Waste 18885 | -5/Waste | Met up with 1 ally sucked down the chute earlier 18913 | -5/Waste | Spotted C-40 Crusher 18922 | -5/Waste | Spotted C-40 Crusher 18930 | -5/Waste | Spotted C-40 Crusher 18936 | -5/Waste | Allies destroyed C-40 Crusher 18953 | -5/Waste | Destroyed C-40 Crusher 18963 | -5/Waste | Crushed by Compactor (1 part destroyed, 2 dropped) 18965 | -5/Waste | Allies destroyed C-40 Crusher 18989 | -5/Waste | Spotted C-40 Crusher 18997 | -5/Waste | Destroyed C-40 Crusher 19011 | -5/Waste | Spotted C-40 Crusher 19024 | -5/Waste | Destroyed C-40 Crusher 19070 | -5/Waste | Spotted C-40 Crusher 19077 | -5/Waste | Destroyed C-40 Crusher 19216 | -5/Waste | Build established: Scavenger-Gunner 19464 | -5/Waste | Warlord forces began an assault 19595 | -5/Waste | Found Damper Plating 19703 | -5/Waste | Discovered new exit (range 13) 19800 | -5/Waste | Entered Factory 19800 | -5/Factory | Accompanied by 20 allies 19901 | -5/Factory | Build established: Scavenger-Tank 20377 | -5/Factory | Discovered new exit (range 24) 20412 | -5/Factory | Lost 3 allies 20427 | -5/Factory | Discovered new exit (range 58) 20584 | -5/Factory | Identified exit to Upper Caves 20683 | -5/Factory | Lost 11 allies 20995 | -5/Factory | Lost 3 allies 21387 | -5/Factory | Entered Upper Caves 21739 | -5/Upper Caves | Attracted the attention of an 0b10 checkpoint 21814 | -5/Upper Caves | Learned Factory security intel 22307 | -5/Upper Caves | Attracted the attention of an 0b10 outpost 22350 | -5/Upper Caves | Destroyed 7 combat bots 22700 | -5/Upper Caves | Discovered new exit (range 9) 22850 | -5/Upper Caves | Entered another Upper Caves area 22850 | -5/Upper Caves | Accompanied by 2 allies 22886 | -5/Upper Caves | Discovered new exit (range 6) 23227 | -5/Upper Caves | Identified exit to Warlord 23329 | -5/Upper Caves | Attracted the attention of an 0b10 checkpoint 23685 | -5/Upper Caves | Entered Warlord 23685 | -5/Warlord | Accompanied by 2 allies 23742 | -5/Warlord | System corruption cleaned by Quarantine Array 24240 | -5/Warlord | Found Prototype Device 24240 | -5/Warlord | Identified Minesniffer Drone Bay 24735 | -5/Warlord | Met Warlord 24753 | -5/Warlord | Opened Warlord's prototype stash 24760 | -5/Warlord | Warlord's base attacked by MAIN.C 24770 | -5/Warlord | Found Prototype Device 24770 | -5/Warlord | Identified Thermal Barrier 24809 | -5/Warlord | Found Prototype Reactor 25108 | -5/Warlord | Spotted Striker 25110 | -5/Warlord | Warlord forces counterattacked 25156 | -5/Warlord | Lost 4 allies 25217 | -5/Warlord | Spotted Executioner 25238 | -5/Warlord | P-80 Master assimilated allied 0I-5CT(g) 25311 | -5/Warlord | Lost 12 allies 25364 | -5/Warlord | Spotted Executioner 25428 | -5/Warlord | Lost 6 allies 25435 | -5/Warlord | Warlord base infiltrated, sounded retreat 25440 | -5/Warlord | Spotted Striker 25440 | -5/Warlord | Spotted Striker 25473 | -5/Warlord | Lost 3 allies 25529 | -5/Warlord | Spotted Striker 25540 | -5/Warlord | Spotted B-86 Titan 25578 | -5/Warlord | Spotted Striker 25578 | -5/Warlord | Spotted Striker 25581 | -5/Warlord | Spotted Striker 25583 | -5/Warlord | Destroyed Striker 25586 | -5/Warlord | Spotted Executioner 25640 | -5/Warlord | Discovered new exit (range 14) 25649 | -5/Warlord | Lost 10 allies 25660 | -5/Warlord | Entered Proximity Caves 25661 | -4/Proximity Caves | P-70 Sage assimilated allied YL-2LQ(i) 25801 | -4/Proximity Caves | Learned Research terminal intel 26025 | -4/Proximity Caves | Attracted the attention of an 0b10 outpost 26050 | -4/Proximity Caves | Destroyed 10 combat bots 26077 | -4/Proximity Caves | System corruption reached 10% 26115 | -4/Proximity Caves | Lost 4 parts (2u2w) 26464 | -4/Proximity Caves | Discovered new exit (range 5) 26540 | -4/Proximity Caves | Entered Factory 26540 | -4/Factory | Evolved 2 slots: Utility x2 26779 | -4/Factory | Discovered new exit (range 21) 27582 | -4/Factory | Repaired Centrium Heavy Treads 28038 | -4/Factory | Lost 5 parts (5u) 28086 | -4/Factory | First assault squad dispatched 28293 | -4/Factory | Build established: Scavenger-Gunner 28655 | -4/Factory | Destroyed 7 combat bots 28857 | -4/Factory | Discovered new exit (range 6) 28871 | -4/Factory | Identified exit to Upper Caves 28914 | -4/Factory | Repaired Centrium Heavy Treads 28976 | -4/Factory | Repaired Hvy. Treads 29053 | -4/Factory | System corruption reached 10% 29130 | -4/Factory | Destroyed 8 combat bots 29130 | -4/Factory | Lost 3 parts (3u) 29138 | -4/Factory | High security lockdown imminent 29218 | -4/Factory | High security lockdown engaged 29292 | -4/Factory | Entered Upper Caves 29334 | -4/Upper Caves | Learned location of Testing (-2) 29347 | -4/Upper Caves | Attracted the attention of an 0b10 checkpoint 29435 | -4/Upper Caves | Identified Vortex Chain Reactor 29689 | -4/Upper Caves | Spotted B-86 Titan 29761 | -4/Upper Caves | Build established: Gunner 29823 | -4/Upper Caves | Discovered new exit (range 7) 30065 | -4/Upper Caves | Entered another Upper Caves area 30065 | -4/Upper Caves | Discovered new exit (range 8) 30123 | -4/Upper Caves | Build established: Derelict-Gunner 30326 | -4/Upper Caves | Encountered a Warlord checkpoint 30377 | -4/Upper Caves | Discovered new exit (range 8) 30415 | -4/Upper Caves | Entered Zhirov 30415 | -4/Zhirov | Discovered new exit (range 3) 30447 | -4/Zhirov | Met Zhirov 30483 | -4/Zhirov | Learned location of Quarantine (-3) 30483 | -4/Zhirov | Learned location of Command (-1) 30492 | -4/Zhirov | Zhirov requested help retrieving the SGEMP Prototype 30517 | -4/Zhirov | Found Alien Artifact 30517 | -4/Zhirov | Identified Integrated Reactor 30517 | -4/Zhirov | Installed Integrated Reactor, increased core energy generation (+10) 30716 | -4/Zhirov | Build established: Mutant 30775 | -4/Zhirov | Entered Proximity Caves 31063 | -3/Proximity Caves | Build established: Derelict-Gunner 31073 | -3/Proximity Caves | Attracted the attention of an 0b10 outpost 31144 | -3/Proximity Caves | Destroyed 12 combat bots 31150 | -3/Proximity Caves | Lost 3 parts (3u) 31204 | -3/Proximity Caves | Discovered new exit (range 13) 31355 | -3/Proximity Caves | Entered Research 31355 | -3/Research | Evolved 2 slots: Utility x2 31356 | -3/Research | Loaded intel: 24 terminal locations 31924 | -3/Research | Cargo convoy interrupted 32043 | -3/Research | Found Exp. Thermal Shield 32162 | -3/Research | Found Prototype Launcher 32162 | -3/Research | Identified Ragnarok Missile Launcher 32181 | -3/Research | Spotted Striker 32181 | -3/Research | Spotted Striker 32189 | -3/Research | Destroyed Striker 32200 | -3/Research | Destroyed Striker 32219 | -3/Research | System corruption reached 10% 32228 | -3/Research | Found Prototype Launcher 32228 | -3/Research | Identified Tactical Quantum Warhead 32234 | -3/Research | Core integrity fell below 50% 32242 | -3/Research | Core integrity fell below 20% 32247 | -3/Research | Destroyed by P-80 Master with Gamma Rifle Last Messages --------------- 32242_ P-80 Master triggered Dirty Bomb Trap. 32242_ An explosion rips through the floor. 32242_ K-01 Serf destroyed. 32242_ Chain reaction triggered in Corrupted Vortex Chain Reactor. 32242_ X-87 Electro destroyed. 32242_ W-44 Eye destroyed. 32242_ Penetrated by Slug. 32242_ Identified Adv. Myomer Leg. 32242_ P-80 Master resets P-80 Master, system corruption cleaned. 32243_ P-80 Master resets A-15 Conveyor, system corruption cleaned. 32244_ Penetrated by Slug. 32244_ Acquired Faulty Adv. Myomer Leg. 32244_ Faulty integration triggers meltdown. 32244_ Adv. Myomer Leg damaged (-33). 32244_ Core Analyzer damaged (-5). 32244_ EM Disruption Field damaged (-1). 32245_ System corrupted: Matter fused (-8). 32245_ EM Disruption Field destroyed. 32245_ Slug penetrates P-80 Master. 32245_ Penetrated by Slug. Map ----- +----------------------------------------------------+ | ?????????????????????????????????????????????????? | | ?????????????????????????????????????????????????? | | ?????????????????????????????????????????????????? | | ?????????????????????????????????????????????????? | | ???????????????????#?????????????????????????????? | | ?????????????? ?###?? ?????????????????????????? | | ????????????? ? ??## ???????????????????????? | | ??????????????##?###??# ???#?????????????????????? | | ???????? ?? ? ? ?## ? ? ?????????????????? | | ??????# ? ? ?# # ??? ????????????????? | | ??????#?? ? "?"S""? ##pp #? ? ???????????????? | | ??????# ? ?"????"" ## # ???? ???????????????? | | ??? ? # ? ? ## #? ? ? ?????????????? | | ??? ? # ? ? ? ## % # ? ? ?????????????? | | ?? #####+########### %###+#######???????????? | | ?# ^ %= ???????????? | | # ^ ??????????? | | ?#? %% [ ^ ??????????? | | # ?? ? ^ % ???????"""""? | | ??####?## ^ A """ ?????""T""? | | ##??#### % !% G ??????????? | | +###### % ! """ ??????????? | | ###### !] * " ?????????? | | ##??# *% !! ! ????????? | | **[%!** ! ????????? | | =%![= * p @! ????????? | | ? h p% ;;;########+##### ????????? | | ! "" # ? ? ##? ??????????? | | # % S"" # ? ??##? ??????????? | | ? "" # ??" ?# ???????????? | | # #??""" ## ??????????? | | | # """ ## ???????????? | | ## = # ? ?? ##????????????? | | #### # ? ##????????????? | | ##### " # ??"" ??????????????? | | #?### " " ########## ""? #?????????????? | | ##### """"""" ########### """ ?#????????????? | | #?### ########### ? #?????????????? | | + ! ######?#?#? ????????????????? | | ##?#######+################# ? ???????????????? | | ########## ################# ? ????????????????? | | ########?# ################? ?????????????????? | | ########## ####?#########?## ?? ????????????????? | | ########## ############?##?#?? ? ????????????????? | | ########## ###############?###?##????????????????? | | ###### ####?############??#??????????????????? | | + ##########?###??###???????????????????? | | #################?#?#####??##????????????????? | | #########?##############?????#???????????????? | | ###?#######?######?##??###??#????????????????? | +----------------------------------------------------+ Best States ------------- Heat Dissipation 109 Coolant Potential 120 Energy Generation 65 Energy Capacity 700 Matter Stores 300 Matter Capacity 300 Sight Range 22 Terrain Scan Range 20 Terrain Scan Density 210 Jamming Range 16 Cloak Strength 3 Base Temperature (-) 200 Armor Coverage 1350 Resistance: KI 30 Resistance: TH 50 Resistance: EM 25 Core Shielding 20 Utility Shielding 66 Weapon Shielding 90 Weapon Cycling 25 Phase Shifting 10 Evasion (%) 55 Targeting Accuracy 8 Core Analysis 6 Recoil Reduction 4 Particle Charging 30 Offensive Hacking 14 Defensive Hacking 10 Authchip Count 1 Item Schematics ----------------- Imp. Medium Armor Plating | -7/Factory | Hacked Combat Drone Bay | -7/Data Miner | Free Lgt. Regenerative Plating | -7/Data Miner | Free Cld. Aerolev Unit | -7/Data Miner | Free Gravity Neutralizer | -7/Data Miner | Free Prc. Rocket Launcher | -7/Data Miner | Free Linear Gravjet | -7/Data Miner | Free Adv. Cooling System | -7/Data Miner | Free KE Penetrator | -7/Data Miner | Free Mass Driver | -7/Data Miner | Free Imp. Kinecellerator | -7/Data Miner | Free Graphene Brace | -7/Data Miner | Free Hyp. Mass Driver | -7/Data Miner | Free Adv. Force Field | -5/Factory | Hacked Assault Drone Bay | -4/Zhirov | Free Exp. Heat Sink | -4/Zhirov | Free Exp. Optical Array | -4/Zhirov | Free Imp. Arc Thrower | -4/Zhirov | Free Robot Schematics ------------------ Y-54 Guardian | -7/Data Miner | Free E-15 Imp | -7/Data Miner | Free M-28 Smith | -7/Data Miner | Free L-41 Fighter | -7/Data Miner | Free Fabricated ------------ Adv. Cooling System | x2 | -6/Factory | Authchip Adv. Plasma Rifle | x1 | -6/Factory | Preloaded Alien Tech Used ----------------- Integrated Reactor Achievements -------------- None Challenges ------------ None Game ------ Seed MasterSmallCoupler Manual? 0 Play Time 04:24:07 Cumulative 280.9 hours Start 2024.11.04 @ 23:16:24 End 2024.11.05 @ 19:43:13 Sessions 5 Manual Loads 0 Difficulty Rogue Special Mode None Game No. 128 Rogue 128 Adventurer 0 Explorer 0 Win Type - Total 10 Types 6/0/3/1/0/0/0/0/0 Lore% 75 Gallery% 75 Achievement% 65 Wizard Run 0 Options --------- Layout 0 ASCII 0 Keyboard 0 Movement Numpad Keybinds 0 Fullscreen 2 Font 18/SmallcapsGlow Map View 76x50 Zoom Use 0% Tactical HUD 1 Map Filters NONE Filters NONE Steam 1 RUN: c5ed33b5-fc01-45d7-a3a2-075a9ed298b1